Workbook

Sheet ADAT TL.
A1: KASA EURO HESABI FAİZ HESAPLAMA TABLOSU | H1: ŞİRKETÇE | I1: ŞİRKETÇE
A2: Y E V M İ Y E | C2: FAİZ ORANI | D2: 16.75 | E2: KALAN | H2: TAHSİLİ | I2: ÖDENMESİ
A3: TARİH | B3: BORÇ TUTARI | C3: ALACAK TUTARI | D3: HES.KES.TAR. | E3: GÜN SAYI | F3: BORÇLU ADAT | G3: ALACAKLI ADAT | H3: GEREKEN | I3: GEREKEN
A4: 1 | B4: 2 | C4: 3 | D4: 4 | E4: 5=4-1 | F4: 6=2x5 | G4: 7=3x5 | H4: FAİZ | I4: FAİZ
A5: 2021-01-01 | B5: 0 | C5: 4500 | D5: 2021-03-31 | E5: =D5-A5 -> 89 | F5: =B5*E5 -> 0 | G5: =C5*E5 -> 400500 | H5: =(F5*$D$2/100)/365 -> 0 | I5: 183.7910959
A6: 2021-01-01 | B6: 0 | C6: 1930 | D6: 2021-03-31 | E6: 89 | F6: 0 | G6: 171770 | H6: 0 | I6: 78.8259589
A7: 2021-01-02 | B7: 2000 | C7: 0 | D7: 2021-03-31 | E7: 88 | F7: 176000 | G7: 0 | H7: 80.76712329 | I7: 0
A8: 2021-01-10 | B8: 750 | C8: 0 | D8: 2021-03-31 | E8: 80 | F8: 60000 | G8: 0 | H8: 27.53424658 | I8: 0
A9: 2021-01-15 | B9: 70000 | C9: 0 | D9: 2021-03-31 | E9: 75 | F9: 5250000 | G9: 0 | H9: 2409.246575 | I9: 0
A10: 2021-01-16 | B10: 1000 | C10: 0 | D10: 2021-03-31 | E10: 74 | F10: 74000 | G10: 0 | H10: 33.95890411 | I10: 0
A11: 2021-01-20 | B11: 375 | C11: 0 | D11: 2021-03-31 | E11: 70 | F11: 26250 | G11: 0 | H11: 12.04623288 | I11: 0
A12: 2021-01-21 | B12: 250 | C12: 0 | D12: 2021-03-31 | E12: 69 | F12: 17250 | G12: 0 | H12: 7.91609589 | I12: 0
A13: 2021-01-31 | B13: 1000 | C13: 0 | D13: 2021-03-31 | E13: 59 | F13: 59000 | G13: 0 | H13: 27.07534247 | I13: 0
A14: 2021-02-02 | B14: 10000 | C14: 0 | D14: 2021-03-31 | E14: 57 | F14: 570000 | G14: 0 | H14: 261.5753425 | I14: 0
A15: 2021-02-15 | B15: 300 | C15: 0 | D15: 2021-03-31 | E15: 44 | F15: 13200 | G15: 0 | H15: 6.057534247 | I15: 0
A16: 2021-02-19 | B16: 33.9 | C16: 0 | D16: 2021-03-31 | E16: 40 | F16: 1356 | G16: 0 | H16: 0.6222739726 | I16: 0
A17: 2021-02-25 | B17: 33.9 | C17: 0 | D17: 2021-03-31 | E17: 34 | F17: 1152.6 | G17: 0 | H17: 0.5289328767 | I17: 0
A18: 2021-02-27 | B18: 0 | C18: 15312.8 | D18: 2021-03-31 | E18: 32 | F18: 0 | G18: 490009.6 | H18: 0 | I18: 224.8674192
A19: 2021-03-04 | B19: 0 | C19: 28 | D19: 2021-03-31 | E19: 27 | F19: 0 | G19: 756 | H19: 0 | I19: 0.3469315068
A20: 2021-03-07 | B20: 0 | C20: 35 | D20: 2021-03-31 | E20: 24 | F20: 0 | G20: 840 | H20: 0 | I20: 0.3854794521
A21: 2021-03-10 | B21: 261114.71 | C21: 0 | D21: 2021-03-31 | E21: 21 | F21: 5483408.91 | G21: 0 | H21: =(F21*$D$2/100)/365 -> 2516.358883 | I21: 0
A22: 2021-03-19 | B22: 15312.8 | C22: 0 | D22: 2021-03-31 | E22: 12 | F22: 183753.6 | G22: 0 | H22: 84.32528219 | I22: 0
A23: 2021-03-20 | B23: 659.57 | C23: 0 | D23: 2021-03-31 | E23: 11 | F23: 7255.27 | G23: 0 | H23: 3.329473219 | I23: 0
A24: 2021-03-21 | B24: 100 | C24: 0 | D24: 2021-03-31 | E24: 10 | F24: 1000 | G24: 0 | H24: 0.4589041096 | I24: 0
A25: 2021-03-30 | B25: 500 | C25: 0 | D25: 2021-03-31 | E25: 1 | F25: 500 | G25: 0 | H25: 0.2294520548 | I25: 0
B27: =SUM(B5:B26) -> 363429.88 | C27: =SUM(C5:C26) -> 21805.8 | E27: =SUM(E5:E26) -> 1006 | F27: =SUM(F5:F26) -> 11924126.38 | G27: =SUM(G5:G26) -> 1063875.6 | H27: =SUM(H5:H26) -> 5472.030599 | I27: =SUM(I5:I26) -> 488.2168849
B31: DÖNEM SONU KASASI | C31: =B27-C27 -> 341624.08 | G31: FARK- | H31: =H27-I27 -> 4983.813714
B32: Günlük Kasa Mevcudu | C32: =+C5 -> 4500 | G32: kur | H32: 0
B33: 31/03/2021 bakiyesi | C33: =+C31-C32 -> 337124.08 | G33: TL | H33: =+H31*H32 -> 0
G42: s
